[Event "Chinese League Div-A Rapid 2022"]
[Site "Fuling,Chongqing"]
[Date "2022.09.15"]
[Round "8.8"]
[White "Lin, Yi"]
[Black "Zhao, Yuanhe"]
[Result "1/2-1/2"]
[ECO "D14"]
[WhiteElo "2394"]
[BlackElo "2440"]
[Annotator "ChessBase"]
[PlyCount "62"]
[EventDate "2022.09.07"]
[EventType "team-tourn"]
[EventCountry "CHN"]
[SourceTitle "playchess.com"]
[Source "ChessBase"]
[SourceQuality "1"]
[TimeControl "1500+10"]

1. d4 {[%emt 0:00:02]} d5 {[%emt 0:00:05]} 2. c4 {[%emt 0:00:06]} c6 {[%emt 0:00:01]} 3. cxd5 {[%emt 0:00:05]} cxd5 {[%emt 0:00:02]} 4. Nf3 {[%emt 0:00:06]} Nf6 {[%emt 0:00:02]} 5. Nc3 {[%emt 0:00:05]} Nc6 {[%emt 0:00:02]} 6. Bf4 {[%emt 0:00:07]} Bf5 {[%emt 0:00:03]} 7. e3 {[%emt 0:00:05]} e6 {[%emt 0:00:03]} 8. Bd3 {[%emt 0:00:06]} Bxd3 {[%emt 0:00:03]} 9. Qxd3 {[%emt 0:00:06]} Bd6 {[%emt 0:00:02]} 10. Bxd6 {[%emt 0:00:07]} Qxd6 {[%emt 0:00:03]} 11. O-O {[%emt 0:00:07]} O-O {[%emt 0:00:03]} 12. Rfc1 {[%emt 0:00:05]} Rfc8 {[%emt 0:00:04]} 13. h3 {[%emt 0:00:05]} h6 {[%emt 0:00:05]} 14. Ne2 {[%emt 0:00:05]} Ne7 {[%emt 0:00:04]} 15. Rxc8+ {[%emt 0:00:06]} Rxc8 {[%emt 0:00:03]} 16. Rc1 {[%emt 0:00:06]} Rxc1+ {[%emt 0:00:04]} 17. Nxc1 {[%emt 0:00:04]} Ne4 {[%emt 0:00:04]} 18. Nd2 {[%emt 0:00:08]} Nxd2 {[%emt 0:00:10]} 19. Qxd2 {[%emt 0:00:05]} Qc6 {[%emt 0:00:11]} 20. Ne2 {[%emt 0:00:06]} g6 {[%emt 0:00:08]} 21. Qc1 {[%emt 0:00:06]} Qxc1+ {[%emt 0:00:09]} 22. Nxc1 {[%emt 0:00:03]} h5 {[%emt 0:00:05]} 23. h4 {[%emt 0:00:05]} Nf5 {[%emt 0:00:03]} 24. g3 {[%emt 0:00:04]} Kf8 {[%emt 0:00:04]} 25. Kf1 {[%emt 0:00:05]} Ke7 {[%emt 0:00:03]} 26. Ke2 {[%emt 0:00:04]} Kd6 {[%emt 0:00:02]} 27. Nd3 {[%emt 0:00:05]} Ke7 {[%emt 0:00:05]} 28. Kd2 {[%emt 0:00:05]} Kd6 {[%emt 0:00:04]} 29. Ke2 {[%emt 0:00:05]} Ke7 {[%emt 0:00:02]} 30. Kd2 {[%emt 0:00:03]} Kd6 {[%emt 0:00:03]} 31. Ke2 {[%emt 0:00:04]} Ke7 {[%emt 0:00:23]} 1/2-1/2

[Event "Chinese League Div-A Rapid 2022"]
[Site "Fuling,Chongqing"]
[Date "2022.09.15"]
[Round "8.9"]
[White "Chu, Ruotong"]
[Black "Zhou, Guijue"]
[Result "1/2-1/2"]
[ECO "E05"]
[WhiteElo "2185"]
[BlackElo "2225"]
[Annotator "ChessBase"]
[PlyCount "61"]
[EventDate "2022.09.07"]
[EventType "team-tourn"]
[EventCountry "CHN"]
[SourceTitle "playchess.com"]
[Source "ChessBase"]
[SourceQuality "1"]
[TimeControl "1500+10"]

1. c4 {[%emt 0:00:03]} Nf6 {[%emt 0:00:12]} 2. Nf3 {[%emt 0:00:39]} e6 {[%emt 0:00:14]} 3. g3 {[%emt 0:00:03]} d5 {[%emt 0:00:02]} 4. Bg2 {[%emt 0:00:03]} Be7 {[%emt 0:00:06]} 5. d4 {[%emt 0:00:05]} O-O {[%emt 0:00:57]} 6. O-O {[%emt 0:02:50]} dxc4 {[%emt 0:01:33]} 7. Qa4 {[%emt 0:00:06]} a6 {[%emt 0:00:09]} 8. Qxc4 {[%emt 0:00:03]} b5 {[%emt 0:00:04]} 9. Qc2 {[%emt 0:00:02]} Bb7 {[%emt 0:00:03]} 10. Bd2 {[%emt 0:00:02]} Be4 {[%emt 0:00:26]} 11. Qc1 {[%emt 0:00:09]} c6 {[%emt 0:00:27]} 12. Rd1 {[%emt 0:04:00]} Bxf3 {[%emt 0:02:25]} 13. Bxf3 {[%emt 0:00:35]} Qxd4 {[%emt 0:00:07]} 14. a4 {[%emt 0:03:43]} b4 {[%emt 0:04:09]} 15. Be3 {[%emt 0:01:06]} Qe5 {[%emt 0:00:11]} 16. Nd2 {[%emt 0:01:45]} Qc7 {[%emt 0:02:07]} 17. Nc4 {[%emt 0:01:52]} Nd5 {[%emt 0:00:56]} 18. a5 {[%emt 0:04:07]} Nxe3 {[%emt 0:02:15]} 19. Qxe3 {[%emt 0:01:38]} Nd7 {[%emt 0:01:38]} 20. Nb6 {[%emt 0:01:24]} Nxb6 {[%emt 0:01:04]} 21. Qxb6 {[%emt 0:00:43]} Rfc8 {[%emt 0:00:38]} 22. Rdc1 {[%emt 0:01:16]} Qxb6 {[%emt 0:01:02]} 23. axb6 {[%emt 0:00:03]} Rab8 {[%emt 0:00:02]} 24. Rxa6 {[%emt 0:00:18]} Bd8 {[%emt 0:00:21]} 25. Rxc6 {[%emt 0:00:50]} Rxc6 {[%emt 0:00:19]} 26. Bxc6 {[%emt 0:00:06]} Bxb6 {[%emt 0:00:05]} 27. Ra8 {[%emt 0:00:17]} Rxa8 {[%emt 0:00:05]} 28. Bxa8 {[%emt 0:00:02]} b3 {[%emt 0:00:12]} 29. Bc6 {[%emt 0:00:11]} Bd4 {[%emt 0:00:02]} 30. Ba4 {[%emt 0:00:03]} Bxb2 {[%emt 0:00:02]} 31. Bxb3 {[%emt 0:00:02]} 1/2-1/2

[Event "Chinese League Div-A Rapid 2022"]
[Site "Fuling,Chongqing"]
[Date "2022.09.15"]
[Round "8.10"]
[White "Ren, Xiaoyi"]
[Black "Zhao, Shengxin"]
[Result "1/2-1/2"]
[ECO "D38"]
[WhiteElo "2250"]
[BlackElo "2112"]
[Annotator "ChessBase"]
[PlyCount "43"]
[EventDate "2022.09.07"]
[EventType "team-tourn"]
[EventCountry "CHN"]
[SourceTitle "playchess.com"]
[Source "ChessBase"]
[SourceQuality "1"]
[TimeControl "1500+10"]

1. d4 {[%emt 0:00:03]} Nf6 {[%emt 0:00:18]} 2. c4 {[%emt 0:00:07]} e6 {[%emt 0:00:32]} 3. Nf3 {[%emt 0:00:11]} Bb4+ {[%emt 0:00:10]} 4. Nc3 {[%emt 0:01:54]} d5 {[%emt 0:01:43]} 5. cxd5 {[%emt 0:00:47]} exd5 {[%emt 0:00:28]} 6. Bg5 {[%emt 0:00:28]} h6 {[%emt 0:00:07]} 7. Bh4 {[%emt 0:00:05]} c5 {[%emt 0:00:08]} 8. e3 {[%emt 0:00:24]} c4 {[%emt 0:00:05]} 9. Nd2 {[%emt 0:03:06]} g5 {[%emt 0:03:06]} 10. Bg3 {[%emt 0:00:09]} Bf5 {[%emt 0:03:37]} 11. h4 {[%emt 0:04:16]} Rg8 {[%emt 0:01:33]} 12. hxg5 {[%emt 0:01:47]} hxg5 {[%emt 0:00:14]} 13. Be5 {[%emt 0:00:08]} Bxc3 {[%emt 0:00:09]} 14. bxc3 {[%emt 0:00:03]} Nbd7 {[%emt 0:00:47]} 15. Bg3 {[%emt 0:01:25]} Kf8 {[%emt 0:00:16]} 16. Qf3 {[%emt 0:00:18]} Bg6 {[%emt 0:00:09]} 17. Bd6+ {[%emt 0:00:10]} Kg7 {[%emt 0:00:18]} 18. Qh3 {[%emt 0:00:09]} Rh8 {[%emt 0:00:07]} 19. Qxh8+ {[%emt 0:00:08]} Qxh8 {[%emt 0:00:05]} 20. Rxh8 {[%emt 0:00:06]} Rxh8 {[%emt 0:00:05]} 21. a4 {[%emt 0:01:17]} Ng4 {[%emt 0:00:19]} 22. e4 {[%emt 0:00:42]} 1/2-1/2

[Event "Chinese League Div-A Rapid 2022"]
[Site "Fuling,Chongqing"]
[Date "2022.09.15"]
[Round "8.11"]
[White "Peng, Xiongjian"]
[Black "Chen, Yuan"]
[Result "1-0"]
[ECO "E09"]
[WhiteElo "2454"]
[BlackElo "2138"]
[Annotator "ChessBase"]
[PlyCount "107"]
[EventDate "2022.09.07"]
[EventType "team-tourn"]
[EventCountry "CHN"]
[SourceTitle "playchess.com"]
[Source "ChessBase"]
[SourceQuality "1"]
[TimeControl "1500+10"]

1. Nf3 {[%emt 0:00:02]} e6 {[%emt 0:00:09]} 2. g3 {[%emt 0:00:10]} Nf6 {[%emt 0:00:10]} 3. Bg2 {[%emt 0:00:02]} d5 {[%emt 0:00:06]} 4. O-O {[%emt 0:00:05]} Be7 {[%emt 0:00:02]} 5. c4 {[%emt 0:00:10]} O-O {[%emt 0:00:06]} 6. d4 {[%emt 0:00:02]} c6 {[%emt 0:00:22]} 7. Qc2 {[%emt 0:00:08]} Nbd7 {[%emt 0:00:02]} 8. Nbd2 {[%emt 0:00:06]} c5 {[%emt 0:00:05]} 9. cxd5 {[%emt 0:00:25]} exd5 {[%emt 0:00:05]} 10. Rd1 {[%emt 0:00:43]} b6 {[%emt 0:00:30]} 11. dxc5 {[%emt 0:01:03]} Nxc5 {[%emt 0:04:55]} 12. Nd4 {[%emt 0:00:03]} Bb7 {[%emt 0:00:22]} 13. Nf5 {[%emt 0:00:50]} Re8 {[%emt 0:00:47]} 14. Nf1 {[%emt 0:01:10]} Bf8 {[%emt 0:00:32]} 15. Bg5 {[%emt 0:00:09]} Rc8 {[%emt 0:02:17]} 16. Qd2 {[%emt 0:01:08]} Nce4 {[%emt 0:02:15]} 17. Qf4 {[%emt 0:01:33]} Nxg5 {[%emt 0:01:18]} 18. Qxg5 {[%emt 0:00:02]} g6 {[%emt 0:01:46]} 19. N1e3 {[%emt 0:00:16]} Ne4 {[%emt 0:02:15]} 20. Nh6+ {[%emt 0:01:28]} Bxh6 {[%emt 0:00:02]} 21. Qxh6 {[%emt 0:00:01]} Qf6 {[%emt 0:02:05]} 22. Ng4 {[%emt 0:05:01]} Qg7 {[%emt 0:02:58]} 23. Qxg7+ {[%emt 0:01:43]} Kxg7 {[%emt 0:00:01]} 24. Ne3 {[%emt 0:00:01]} Re5 {[%emt 0:01:44]} 25. a4 {[%emt 0:01:38]} Rce8 {[%emt 0:00:27]} 26. Ra3 {[%emt 0:00:14]} Nd6 {[%emt 0:00:34]} 27. Rc3 {[%emt 0:00:47]} R8e7 {[%emt 0:00:51]} 28. Bxd5 {[%emt 0:00:18]} Ba6 {[%emt 0:00:54]} 29. Rc2 {[%emt 0:01:39]} Ne8 {[%emt 0:01:55]} 30. Bf3 {[%emt 0:00:36]} Nf6 {[%emt 0:00:04]} 31. b4 {[%emt 0:00:49]} Bb7 {[%emt 0:00:02]} 32. Bxb7 {[%emt 0:00:36]} Rxb7 {[%emt 0:00:02]} 33. Rc6 {[%emt 0:00:16]} Re4 {[%emt 0:00:16]} 34. Rc4 {[%emt 0:01:57]} Rbe7 {[%emt 0:00:10]} 35. Rdd4 {[%emt 0:00:03]} Rxd4 {[%emt 0:00:26]} 36. Rxd4 {[%emt 0:00:01]} h5 {[%emt 0:00:21]} 37. Kf1 {[%emt 0:00:05]} Rc7 {[%emt 0:00:07]} 38. Ke1 {[%emt 0:00:24]} Rc1+ {[%emt 0:00:07]} 39. Kd2 {[%emt 0:00:03]} Ra1 {[%emt 0:00:02]} 40. b5 {[%emt 0:00:01]} Kf8 {[%emt 0:00:24]} 41. h4 {[%emt 0:01:03]} Ke7 {[%emt 0:00:04]} 42. Nc2 {[%emt 0:00:58]} Rf1 {[%emt 0:00:03]} 43. f3 {[%emt 0:00:02]} Nd7 {[%emt 0:00:21]} 44. Nb4 {[%emt 0:01:10]} Nc5 {[%emt 0:00:01]} 45. Ke3 {[%emt 0:00:05]} Ra1 {[%emt 0:00:09]} 46. Nc6+ {[%emt 0:00:06]} Ke6 {[%emt 0:00:08]} 47. Nxa7 {[%emt 0:00:02]} Nxa4 {[%emt 0:00:08]} 48. Nc8 {[%emt 0:00:22]} Nc3 {[%emt 0:00:17]} 49. Rd6+ {[%emt 0:00:35]} Ke5 {[%emt 0:00:03]} 50. Rd3 {[%emt 0:02:24]} Nd5+ {[%emt 0:00:19]} 51. Kf2 {[%emt 0:00:02]} Rb1 {[%emt 0:00:19]} 52. f4+ {[%emt 0:00:10]} Ke6 {[%emt 0:00:03]} 53. e4 {[%emt 0:00:01]} Rb2+ {[%emt 0:00:17]} 54. Kf3 {[%emt 0:00:01]} 1-0

[Event "Chinese League Div-A Rapid 2022"]
[Site "Fuling,Chongqing"]
[Date "2022.09.15"]
[Round "8.12"]
[White "Zhang, Pengxiang"]
[Black "Ding, Liren"]
[Result "0-1"]
[ECO "C90"]
[WhiteElo "2564"]
[BlackElo "2808"]
[Annotator "ChessBase"]
[PlyCount "86"]
[EventDate "2022.09.07"]
[EventType "team-tourn"]
[EventCountry "CHN"]
[SourceTitle "playchess.com"]
[Source "ChessBase"]
[SourceQuality "1"]
[TimeControl "1500+10"]

1. e4 {[%emt 0:00:03]} e5 {[%emt 0:00:01]} 2. Nf3 {[%emt 0:00:01]} Nc6 {[%emt 0:00:02]} 3. Bb5 {[%emt 0:00:02]} a6 {[%emt 0:00:01]} 4. Ba4 {[%emt 0:00:07]} Nf6 {[%emt 0:00:02]} 5. O-O {[%emt 0:00:13]} Be7 {[%emt 0:00:01]} 6. Re1 {[%emt 0:00:24]} b5 {[%emt 0:00:03]} 7. Bb3 {[%emt 0:00:01]} O-O {[%emt 0:00:03]} 8. d3 {[%emt 0:01:57]} d6 {[%emt 0:00:32]} 9. c3 {[%emt 0:00:16]} Na5 {[%emt 0:00:40]} 10. Bc2 {[%emt 0:00:04]} c5 {[%emt 0:00:01]} 11. Nbd2 {[%emt 0:00:07]} Nc6 {[%emt 0:00:19]} 12. Nf1 {[%emt 0:00:31]} h6 {[%emt 0:00:16]} 13. Ne3 {[%emt 0:03:40]} Re8 {[%emt 0:00:01]} 14. h3 {[%emt 0:02:32]} Bf8 {[%emt 0:01:58]} 15. Bb3 {[%emt 0:00:12]} Na5 {[%emt 0:00:16]} 16. Bc2 {[%emt 0:00:06]} Nc6 {[%emt 0:00:01]} 17. Bb3 {[%emt 0:00:04]} Rb8 {[%emt 0:00:59]} 18. Nh2 {[%emt 0:02:06]} Na5 {[%emt 0:01:10]} 19. Bc2 {[%emt 0:02:30]} d5 {[%emt 0:00:09]} 20. Nhg4 {[%emt 0:00:11]} Nxg4 {[%emt 0:00:10]} 21. hxg4 {[%emt 0:00:18]} d4 {[%emt 0:00:02]} 22. Nf5 {[%emt 0:01:34]} g6 {[%emt 0:00:54]} 23. Nxh6+ {[%emt 0:04:04]} Bxh6 {[%emt 0:00:15]} 24. Bxh6 {[%emt 0:00:00]} g5 {[%emt 0:00:01]} 25. b4 {[%emt 0:00:01]} Nc6 {[%emt 0:00:21]} 26. Bb3 {[%emt 0:04:55]} Kh7 {[%emt 0:00:52]} 27. Bxf7 {[%emt 0:00:18]} Kxh6 {[%emt 0:00:11]} 28. Bxe8 {[%emt 0:00:04]} Qxe8 {[%emt 0:00:01]} 29. Rc1 {[%emt 0:00:11]} dxc3 {[%emt 0:01:00]} 30. Rxc3 {[%emt 0:00:07]} cxb4 {[%emt 0:00:01]} 31. Rc5 {[%emt 0:00:09]} Bd7 {[%emt 0:00:33]} 32. Re3 {[%emt 0:00:05]} Kg6 {[%emt 0:00:49]} 33. Rh3 {[%emt 0:01:26]} Qe7 {[%emt 0:01:15]} 34. Rc1 {[%emt 0:00:42]} Nd4 {[%emt 0:00:35]} 35. f3 {[%emt 0:00:19]} Rf8 {[%emt 0:03:52]} 36. Qd2 {[%emt 0:00:55]} b3 {[%emt 0:02:25]} 37. Kh1 {[%emt 0:00:05]} Be6 {[%emt 0:00:13]} 38. a3 {[%emt 0:00:25]} Rf7 {[%emt 0:02:04]} 39. Rh5 {[%emt 0:00:00]} Qf6 {[%emt 0:01:40]} 40. Qb4 {[%emt 0:00:47]} Nxf3 {[%emt 0:01:02]} 41. Rf1 {[%emt 0:00:11]} Bxg4 {[%emt 0:00:04]} 42. Rh2 {[%emt 0:00:08]} Qf4 {[%emt 0:00:31]} 43. Rh8 {[%emt 0:00:01]} Kg7 {[%emt 0:00:16]} 0-1

[Event "Chinese League Div-A Rapid 2022"]
[Site "Fuling,Chongqing"]
[Date "2022.09.15"]
[Round "8.13"]
[White "Wan, Yunguo"]
[Black "Lu, Shanglei"]
[Result "0-1"]
[ECO "B90"]
[WhiteElo "2508"]
[BlackElo "2616"]
[Annotator "ChessBase"]
[PlyCount "94"]
[EventDate "2022.09.07"]
[EventType "team-tourn"]
[EventCountry "CHN"]
[SourceTitle "playchess.com"]
[Source "ChessBase"]
[SourceQuality "1"]
[TimeControl "1500+10"]

1. e4 {[%emt 0:00:04]} c5 {[%emt 0:00:01]} 2. Nf3 {[%emt 0:00:09]} d6 {[%emt 0:00:02]} 3. d4 {[%emt 0:00:05]} cxd4 {[%emt 0:00:02]} 4. Nxd4 {[%emt 0:00:04]} Nf6 {[%emt 0:00:02]} 5. Nc3 {[%emt 0:00:04]} a6 {[%emt 0:00:02]} 6. Be3 {[%emt 0:00:26]} e5 {[%emt 0:00:14]} 7. Nb3 {[%emt 0:00:05]} Be6 {[%emt 0:00:03]} 8. h3 {[%emt 0:00:05]} h5 {[%emt 0:00:56]} 9. Qf3 {[%emt 0:02:59]} Nbd7 {[%emt 0:00:11]} 10. Rg1 {[%emt 0:01:16]} Rc8 {[%emt 0:01:39]} 11. O-O-O {[%emt 0:00:40]} Rxc3 {[%emt 0:00:02]} 12. bxc3 {[%emt 0:00:04]} Qc7 {[%emt 0:00:14]} 13. Kb2 {[%emt 0:00:27]} h4 {[%emt 0:03:13]} 14. Bd3 {[%emt 0:03:57]} Be7 {[%emt 0:00:51]} 15. Qe2 {[%emt 0:01:49]} Qc6 {[%emt 0:04:30]} 16. f3 {[%emt 0:01:58]} Nh5 {[%emt 0:00:02]} 17. c4 {[%emt 0:03:18]} Nb6 {[%emt 0:03:31]} 18. Bxb6 {[%emt 0:01:28]} Qxb6 {[%emt 0:00:05]} 19. c5 {[%emt 0:00:20]} dxc5 {[%emt 0:01:55]} 20. Bc4 {[%emt 0:00:17]} O-O {[%emt 0:04:28]} 21. Bd5 {[%emt 0:03:37]} Nf4 {[%emt 0:01:19]} 22. Qc4 {[%emt 0:00:06]} Bxd5 {[%emt 0:00:02]} 23. exd5 {[%emt 0:00:03]} Qd6 {[%emt 0:00:08]} 24. a4 {[%emt 0:00:42]} b5 {[%emt 0:02:29]} 25. axb5 {[%emt 0:00:03]} axb5 {[%emt 0:00:01]} 26. Qxb5 {[%emt 0:00:06]} c4 {[%emt 0:00:02]} 27. Qxc4 {[%emt 0:00:06]} Qa3+ {[%emt 0:00:17]} 28. Kb1 {[%emt 0:00:02]} Ra8 {[%emt 0:00:35]} 29. Rge1 {[%emt 0:01:47]} Bg5 {[%emt 0:00:54]} 30. Rd2 {[%emt 0:01:59]} Nxg2 {[%emt 0:00:14]} 31. Ree2 {[%emt 0:00:10]} Ne3 {[%emt 0:01:43]} 32. Qc3 {[%emt 0:01:35]} Nf1 {[%emt 0:00:19]} 33. Qb2 {[%emt 0:00:29]} Nxd2+ {[%emt 0:00:10]} 34. Nxd2 {[%emt 0:00:01]} Qa7 {[%emt 0:00:08]} 35. c3 {[%emt 0:00:26]} Qa6 {[%emt 0:00:19]} 36. Nb3 {[%emt 0:00:12]} Qd3+ {[%emt 0:00:04]} 37. Qc2 {[%emt 0:00:02]} Qxf3 {[%emt 0:00:13]} 38. Rxe5 {[%emt 0:00:09]} Bf6 {[%emt 0:00:09]} 39. Rf5 {[%emt 0:00:11]} Qxh3 {[%emt 0:00:13]} 40. d6 {[%emt 0:00:08]} Bxc3 {[%emt 0:00:07]} 41. Rd5 {[%emt 0:00:08]} Bf6 {[%emt 0:00:18]} 42. d7 {[%emt 0:00:00]} Qe6 {[%emt 0:00:05]} 43. Qd3 {[%emt 0:00:23]} Qe1+ {[%emt 0:00:15]} 44. Qd1 {[%emt 0:00:01]} Qe7 {[%emt 0:00:11]} 45. Qd3 {[%emt 0:00:11]} h3 {[%emt 0:00:07]} 46. Rc5 {[%emt 0:00:24]} Qe6 {[%emt 0:00:12]} 47. Rh5 {[%emt 0:00:13]} Qe1+ {[%emt 0:00:08]} 0-1

[Event "Chinese League Div-A Rapid 2022"]
[Site "Fuling,Chongqing"]
[Date "2022.09.15"]
[Round "8.14"]
[White "Qiu, Mengjie"]
[Black "Zhang, Lanlin"]
[Result "0-1"]
[ECO "B51"]
[WhiteElo "2149"]
[BlackElo "2135"]
[Annotator "ChessBase"]
[PlyCount "148"]
[EventDate "2022.09.07"]
[EventType "team-tourn"]
[EventCountry "CHN"]
[SourceTitle "playchess.com"]
[Source "ChessBase"]
[SourceQuality "1"]
[TimeControl "1500+10"]

1. e4 {[%emt 0:00:03]} c5 {[%emt 0:00:01]} 2. Nf3 {[%emt 0:00:05]} d6 {[%emt 0:00:01]} 3. Bb5+ {[%emt 0:00:05]} Nd7 {[%emt 0:01:46]} 4. O-O {[%emt 0:00:48]} a6 {[%emt 0:00:10]} 5. Bxd7+ {[%emt 0:00:31]} Bxd7 {[%emt 0:00:18]} 6. c3 {[%emt 0:00:18]} Nf6 {[%emt 0:00:08]} 7. Re1 {[%emt 0:00:03]} c4 {[%emt 0:02:38]} 8. b3 {[%emt 0:01:49]} cxb3 {[%emt 0:03:29]} 9. axb3 {[%emt 0:00:06]} e6 {[%emt 0:03:14]} 10. d4 {[%emt 0:00:25]} Be7 {[%emt 0:00:03]} 11. e5 {[%emt 0:01:40]} dxe5 {[%emt 0:00:02]} 12. Nxe5 {[%emt 0:00:08]} O-O {[%emt 0:00:16]} 13. Ba3 {[%emt 0:00:30]} Bxa3 {[%emt 0:00:48]} 14. Nxa3 {[%emt 0:00:03]} Qc7 {[%emt 0:00:02]} 15. Rc1 {[%emt 0:01:01]} Rad8 {[%emt 0:00:06]} 16. Nxd7 {[%emt 0:00:42]} Qxd7 {[%emt 0:00:33]} 17. Nc4 {[%emt 0:00:35]} b5 {[%emt 0:01:23]} 18. Ne5 {[%emt 0:00:13]} Qd6 {[%emt 0:00:11]} 19. h3 {[%emt 0:00:32]} h6 {[%emt 0:00:08]} 20. Qf3 {[%emt 0:00:57]} Rc8 {[%emt 0:02:32]} 21. Red1 {[%emt 0:00:51]} a5 {[%emt 0:00:49]} 22. Ra1 {[%emt 0:01:20]} Qc7 {[%emt 0:01:43]} 23. c4 {[%emt 0:01:21]} bxc4 {[%emt 0:00:32]} 24. bxc4 {[%emt 0:00:46]} Nd7 {[%emt 0:00:42]} 25. Nxd7 {[%emt 0:00:10]} Qxd7 {[%emt 0:00:02]} 26. c5 {[%emt 0:03:03]} a4 {[%emt 0:00:08]} 27. Qc3 {[%emt 0:00:47]} Qc6 {[%emt 0:00:18]} 28. Ra3 {[%emt 0:00:36]} Rfd8 {[%emt 0:01:16]} 29. Rda1 {[%emt 0:01:58]} e5 {[%emt 0:02:56]} 30. dxe5 {[%emt 0:03:30]} Qxc5 {[%emt 0:00:02]} 31. Qxc5 {[%emt 0:02:28]} Rxc5 {[%emt 0:00:01]} 32. e6 {[%emt 0:01:15]} fxe6 {[%emt 0:00:29]} 33. Rxa4 {[%emt 0:00:06]} Rf8 {[%emt 0:00:42]} 34. R4a2 {[%emt 0:00:30]} Rf6 {[%emt 0:00:31]} 35. Re1 {[%emt 0:00:09]} Rc6 {[%emt 0:00:05]} 36. Rae2 {[%emt 0:00:13]} Ra6 {[%emt 0:00:03]} 37. g3 {[%emt 0:00:28]} Rb6 {[%emt 0:00:40]} 38. Re5 {[%emt 0:00:13]} Ra6 {[%emt 0:00:03]} 39. R1e2 {[%emt 0:00:10]} Rb6 {[%emt 0:00:04]} 40. Kg2 {[%emt 0:00:04]} Ra6 {[%emt 0:00:01]} 41. h4 {[%emt 0:00:40]} Rb6 {[%emt 0:00:15]} 42. Ra2 {[%emt 0:00:20]} Rf5 {[%emt 0:00:13]} 43. Re3 {[%emt 0:00:10]} h5 {[%emt 0:00:25]} 44. Rae2 {[%emt 0:00:12]} Kf7 {[%emt 0:00:03]} 45. Re5 {[%emt 0:00:06]} Kf6 {[%emt 0:00:16]} 46. R5e4 {[%emt 0:00:05]} Rfb5 {[%emt 0:00:30]} 47. Rf4+ {[%emt 0:00:08]} Ke7 {[%emt 0:00:01]} 48. Rfe4 {[%emt 0:00:07]} Rb4 {[%emt 0:00:15]} 49. Re5 {[%emt 0:00:12]} R4b5 {[%emt 0:00:01]} 50. R5e4 {[%emt 0:00:11]} Rb4 {[%emt 0:00:01]} 51. f3 {[%emt 0:00:25]} Rxe4 {[%emt 0:00:11]} 52. Rxe4 {[%emt 0:00:04]} Kf6 {[%emt 0:00:06]} 53. Rf4+ {[%emt 0:00:03]} Ke7 {[%emt 0:00:13]} 54. Re4 {[%emt 0:00:05]} Rb2+ {[%emt 0:00:21]} 55. Kg1 {[%emt 0:00:07]} Ra2 {[%emt 0:00:28]} 56. Rd4 {[%emt 0:00:08]} e5 {[%emt 0:00:10]} 57. Rb4 {[%emt 0:00:13]} Kf6 {[%emt 0:00:14]} 58. Re4 {[%emt 0:00:09]} Kf5 {[%emt 0:00:30]} 59. g4+ {[%emt 0:00:38]} hxg4 {[%emt 0:00:08]} 60. Rxg4 {[%emt 0:00:02]} g6 {[%emt 0:00:09]} 61. Kf1 {[%emt 0:00:18]} Rd2 {[%emt 0:00:07]} 62. Ke1 {[%emt 0:00:10]} Rd4 {[%emt 0:00:03]} 63. Rg5+ {[%emt 0:00:19]} Kf4 {[%emt 0:00:01]} 64. Rxg6 {[%emt 0:00:04]} Kxf3 {[%emt 0:00:01]} 65. h5 {[%emt 0:00:14]} Rh4 {[%emt 0:00:05]} 66. Rh6 {[%emt 0:00:13]} e4 {[%emt 0:00:21]} 67. Rh8 {[%emt 0:00:08]} Ke3 {[%emt 0:00:09]} 68. Kf1 {[%emt 0:00:04]} Rh1+ {[%emt 0:00:56]} 69. Kg2 {[%emt 0:00:02]} Ra1 {[%emt 0:00:01]} 70. h6 {[%emt 0:00:05]} Ra7 {[%emt 0:00:17]} 71. h7 {[%emt 0:00:12]} Ke2 {[%emt 0:00:07]} 72. Kg3 {[%emt 0:00:25]} e3 {[%emt 0:00:04]} 73. Kf4 {[%emt 0:00:12]} Kf2 {[%emt 0:00:08]} 74. Kg4 {[%emt 0:00:13]} Rf7 {[%emt 0:00:25]} 0-1

[Event "Chinese League Div-A Rapid 2022"]
[Site "Fuling,Chongqing"]
[Date "2022.09.15"]
[Round "8.15"]
[White "Bai, Xue"]
[Black "Yang, Yijing"]
[Result "1/2-1/2"]
[ECO "C11"]
[WhiteElo "2123"]
[BlackElo "2022"]
[Annotator "ChessBase"]
[PlyCount "71"]
[EventDate "2022.09.07"]
[EventType "team-tourn"]
[EventCountry "CHN"]
[SourceTitle "playchess.com"]
[Source "ChessBase"]
[SourceQuality "1"]
[TimeControl "1500+10"]

1. e4 {[%emt 0:00:03]} e6 {[%emt 0:00:04]} 2. d4 {[%emt 0:00:02]} d5 {[%emt 0:00:02]} 3. Nc3 {[%emt 0:00:03]} Nf6 {[%emt 0:01:00]} 4. e5 {[%emt 0:00:04]} Nfd7 {[%emt 0:00:03]} 5. f4 {[%emt 0:00:06]} c5 {[%emt 0:00:03]} 6. Nf3 {[%emt 0:00:06]} Nc6 {[%emt 0:00:03]} 7. Be3 {[%emt 0:00:08]} a6 {[%emt 0:00:54]} 8. Qd2 {[%emt 0:00:11]} b5 {[%emt 0:00:05]} 9. dxc5 {[%emt 0:01:47]} Bxc5 {[%emt 0:01:37]} 10. Bd3 {[%emt 0:02:19]} Qb6 {[%emt 0:02:19]} 11. Bf2 {[%emt 0:00:04]} h6 {[%emt 0:01:18]} 12. O-O {[%emt 0:01:46]} Bxf2+ {[%emt 0:01:49]} 13. Qxf2 {[%emt 0:01:00]} Qxf2+ {[%emt 0:00:12]} 14. Kxf2 {[%emt 0:00:02]} g5 {[%emt 0:02:03]} 15. g3 {[%emt 0:00:54]} g4 {[%emt 0:00:29]} 16. Nd2 {[%emt 0:02:21]} h5 {[%emt 0:00:59]} 17. Ne2 {[%emt 0:02:19]} Ke7 {[%emt 0:02:16]} 18. c3 {[%emt 0:02:32]} Nc5 {[%emt 0:00:10]} 19. Bc2 {[%emt 0:00:04]} f6 {[%emt 0:01:21]} 20. exf6+ {[%emt 0:00:04]} Kxf6 {[%emt 0:00:04]} 21. Rfe1 {[%emt 0:02:45]} b4 {[%emt 0:02:00]} 22. Rac1 {[%emt 0:02:35]} bxc3 {[%emt 0:01:25]} 23. bxc3 {[%emt 0:00:03]} Rb8 {[%emt 0:00:04]} 24. Rb1 {[%emt 0:00:05]} Bd7 {[%emt 0:00:19]} 25. Rxb8 {[%emt 0:03:24]} Rxb8 {[%emt 0:00:05]} 26. Rb1 {[%emt 0:00:22]} Rxb1 {[%emt 0:01:57]} 27. Bxb1 {[%emt 0:00:06]} Ne7 {[%emt 0:00:12]} 28. Nb3 {[%emt 0:01:36]} Nxb3 {[%emt 0:00:49]} 29. axb3 {[%emt 0:00:02]} e5 {[%emt 0:00:03]} 30. fxe5+ {[%emt 0:00:17]} Kxe5 {[%emt 0:00:02]} 31. Nf4 {[%emt 0:00:10]} Be8 {[%emt 0:00:14]} 32. Ke3 {[%emt 0:00:34]} a5 {[%emt 0:00:29]} 33. Bd3 {[%emt 0:00:53]} Bf7 {[%emt 0:00:20]} 34. Bc2 {[%emt 0:00:02]} Be8 {[%emt 0:00:04]} 35. Bd3 {[%emt 0:00:39]} d4+ {[%emt 0:00:01]} 36. cxd4+ {[%emt 0:00:01]} 1/2-1/2